[Event "*** Titled Tuesday Blitz"]
[Site "Chess.com"]
[Date "2020.05.26"]
[Round "9"]
[White "Grandmaster2B"]
[Black "aleksandrovaleksei"]
[Result "0-1"]
[WhiteElo "2426"]
[BlackElo "2672"]
[TimeControl "180+1"]
[EndTime "11:50:09 PDT"]
[Termination "aleksandrovaleksei won by resignation"]

1. e4 {[%clk 0:03:00.9]} 1... e5 {[%clk 0:02:59]} 2. Nf3 {[%clk 0:03:00]} 2...
Nc6 {[%clk 0:02:59.2]} 3. Bb5 {[%clk 0:02:59.3]} 3... a6 {[%clk 0:02:58.1]} 4.
Ba4 {[%clk 0:02:59.6]} 4... Nf6 {[%clk 0:02:57.1]} 5. O-O {[%clk 0:03:00]} 5...
Be7 {[%clk 0:02:56.5]} 6. Re1 {[%clk 0:02:59.8]} 6... b5 {[%clk 0:02:56.6]} 7.
Bb3 {[%clk 0:03:00.1]} 7... d6 {[%clk 0:02:57.5]} 8. c3 {[%clk 0:02:59.4]} 8...
O-O {[%clk 0:02:57.5]} 9. h3 {[%clk 0:02:59.8]} 9... Nb8 {[%clk 0:02:56.4]} 10.
d4 {[%clk 0:02:59.8]} 10... Nbd7 {[%clk 0:02:57.1]} 11. Bg5 {[%clk 0:03:00]}
11... c5 {[%clk 0:02:42.1]} 12. Nbd2 {[%clk 0:02:55.7]} 12... Re8 {[%clk
0:02:36.9]} 13. a4 {[%clk 0:02:51.1]} 13... Bb7 {[%clk 0:02:30.2]} 14. Bc2
{[%clk 0:02:49.8]} 14... h6 {[%clk 0:02:18.5]} 15. Bh4 {[%clk 0:02:49.2]} 15...
cxd4 {[%clk 0:02:11.7]} 16. cxd4 {[%clk 0:02:47.8]} 16... Qb6 {[%clk 0:02:12.2]}
17. axb5 {[%clk 0:02:22.2]} 17... axb5 {[%clk 0:02:11.2]} 18. dxe5 {[%clk
0:01:57.4]} 18... Rxa1 {[%clk 0:01:50.6]} 19. Qxa1 {[%clk 0:01:58.3]} 19... Nxe5
{[%clk 0:01:50.4]} 20. Nxe5 {[%clk 0:01:56.2]} 20... dxe5 {[%clk 0:01:51.3]} 21.
Nf3 {[%clk 0:01:47.3]} 21... Bb4 {[%clk 0:01:31.7]} 22. Re2 {[%clk 0:01:40.2]}
22... Nh5 {[%clk 0:01:26.7]} 23. b3 {[%clk 0:01:32.8]} 23... g5 {[%clk
0:01:20.5]} 24. Nxg5 {[%clk 0:01:23.7]} 24... hxg5 {[%clk 0:01:15.5]} 25. Bxg5
{[%clk 0:01:24.6]} 25... Qg6 {[%clk 0:00:58.8]} 26. Bc1 {[%clk 0:01:05.4]} 26...
Nf4 {[%clk 0:00:56.2]} 27. Bxf4 {[%clk 0:01:02.7]} 27... exf4 {[%clk 0:00:57.1]}
28. Qd4 {[%clk 0:01:01.1]} 28... f3 {[%clk 0:00:54]} 0-1

[Event "*** Titled Tuesday Blitz"]
[Site "Chess.com"]
[Date "2020.05.26"]
[Round "9"]
[White "Gurvich_Vitaly"]
[Black "1stSecond"]
[Result "0-1"]
[WhiteElo "2546"]
[BlackElo "2702"]
[TimeControl "180+1"]
[EndTime "11:50:12 PDT"]
[Termination "1stSecond won by resignation"]

1. e4 {[%clk 0:03:00.9]} 1... d5 {[%clk 0:03:00]} 2. d3 {[%clk 0:02:59.8]} 2...
dxe4 {[%clk 0:03:00]} 3. dxe4 {[%clk 0:03:00.7]} 3... Qxd1+ {[%clk 0:03:00.4]}
4. Kxd1 {[%clk 0:03:01.6]} 4... Nf6 {[%clk 0:03:01]} 5. f3 {[%clk 0:03:00.7]}
5... e5 {[%clk 0:02:52]} 6. Be3 {[%clk 0:02:59.5]} 6... Nbd7 {[%clk 0:02:51]} 7.
Nd2 {[%clk 0:02:59.9]} 7... Bc5 {[%clk 0:02:50.5]} 8. Bxc5 {[%clk 0:02:59.8]}
8... Nxc5 {[%clk 0:02:51.4]} 9. c3 {[%clk 0:03:00.6]} 9... Be6 {[%clk
0:02:41.6]} 10. Kc2 {[%clk 0:03:00.8]} 10... a5 {[%clk 0:02:32.4]} 11. Bc4
{[%clk 0:02:56.7]} 11... Ke7 {[%clk 0:02:29.3]} 12. Ne2 {[%clk 0:02:52.6]} 12...
c6 {[%clk 0:02:22.7]} 13. a4 {[%clk 0:02:50.5]} 13... Rhd8 {[%clk 0:02:18.3]}
14. Bxe6 {[%clk 0:02:49.8]} 14... Kxe6 {[%clk 0:02:12.5]} 15. Nc4 {[%clk
0:02:50.2]} 15... Ne8 {[%clk 0:01:28]} 16. Ng3 {[%clk 0:02:35.1]} 16... g6
{[%clk 0:01:27.8]} 17. Rhd1 {[%clk 0:02:23]} 17... Rxd1 {[%clk 0:01:27]} 18.
Kxd1 {[%clk 0:02:23.9]} 18... Nd6 {[%clk 0:01:20]} 19. Nxd6 {[%clk 0:02:22]}
19... Kxd6 {[%clk 0:01:20.9]} 20. Kc2 {[%clk 0:02:21.9]} 20... Ke6 {[%clk
0:01:19.1]} 21. Ne2 {[%clk 0:01:59.8]} 21... f5 {[%clk 0:01:14.8]} 22. exf5+
{[%clk 0:01:59.4]} 22... gxf5 {[%clk 0:01:15.7]} 23. f4 {[%clk 0:01:59.5]} 23...
e4 {[%clk 0:01:07]} 24. b3 {[%clk 0:01:55.4]} 24... Rd8 {[%clk 0:00:58.6]} 25.
Nd4+ {[%clk 0:01:39.6]} 25... Kf6 {[%clk 0:00:58.3]} 26. g3 {[%clk 0:01:37]}
26... h5 {[%clk 0:00:57.4]} 27. Rb1 {[%clk 0:01:35.4]} 27... h4 {[%clk
0:00:56.7]} 28. b4 {[%clk 0:01:31.4]} 28... axb4 {[%clk 0:00:47.7]} 29. Rxb4
{[%clk 0:01:32.3]} 29... hxg3 {[%clk 0:00:41.9]} 30. hxg3 {[%clk 0:01:33.2]}
30... Rh8 {[%clk 0:00:42]} 31. Rc4 {[%clk 0:01:31.5]} 31... Rh2+ {[%clk
0:00:41.7]} 32. Kd1 {[%clk 0:01:30.8]} 32... Nd3 {[%clk 0:00:40.1]} 0-1

[Event "*** Titled Tuesday Blitz"]
[Site "Chess.com"]
[Date "2020.05.26"]
[Round "9"]
[White "mr65"]
[Black "CraiggoryC"]
[Result "1-0"]
[WhiteElo "2167"]
[BlackElo "2086"]
[TimeControl "180+1"]
[EndTime "11:50:12 PDT"]
[Termination "mr65 won on time"]

1. e4 {[%clk 0:03:00.9]} 1... e6 {[%clk 0:02:47]} 2. d4 {[%clk 0:02:59.7]} 2...
d5 {[%clk 0:02:44.5]} 3. Nc3 {[%clk 0:02:59.5]} 3... Bb4 {[%clk 0:02:42.3]} 4.
e5 {[%clk 0:02:58.5]} 4... c5 {[%clk 0:02:42.5]} 5. a3 {[%clk 0:02:58.4]} 5...
Bxc3+ {[%clk 0:02:42.9]} 6. bxc3 {[%clk 0:02:57.8]} 6... Ne7 {[%clk 0:02:43.4]}
7. Nf3 {[%clk 0:02:57.1]} 7... Nbc6 {[%clk 0:02:41.5]} 8. a4 {[%clk 0:02:54.6]}
8... Qa5 {[%clk 0:02:40.5]} 9. Qd2 {[%clk 0:02:53.4]} 9... O-O {[%clk
0:02:17.2]} 10. Ba3 {[%clk 0:02:50.1]} 10... b6 {[%clk 0:02:11.5]} 11. Be2
{[%clk 0:02:36.4]} 11... Ba6 {[%clk 0:02:06.1]} 12. Bxa6 {[%clk 0:02:25.7]}
12... Qxa6 {[%clk 0:02:05.9]} 13. dxc5 {[%clk 0:02:22.3]} 13... Qxa4 {[%clk
0:01:42.8]} 14. cxb6 {[%clk 0:02:19.2]} 14... Qe4+ {[%clk 0:01:12.5]} 15. Qe2
{[%clk 0:02:18.9]} 15... axb6 {[%clk 0:01:09.1]} 16. Qxe4 {[%clk 0:02:16.1]}
16... dxe4 {[%clk 0:01:09]} 17. Nd2 {[%clk 0:02:15.8]} 17... Ra4 {[%clk
0:00:54.5]} 18. Ke2 {[%clk 0:02:00.2]} 18... Rfa8 {[%clk 0:00:49.5]} 19. Bb2
{[%clk 0:01:59]} 19... Nxe5 {[%clk 0:00:37.9]} 20. c4 {[%clk 0:01:48.5]} 20...
Rxa1 {[%clk 0:00:17.8]} 21. Rxa1 {[%clk 0:01:47.2]} 21... Rxa1 {[%clk
0:00:17.3]} 22. Bxa1 {[%clk 0:01:47.1]} 22... Ng4 {[%clk 0:00:12.1]} 23. Bd4
{[%clk 0:01:40.1]} 23... f5 {[%clk 0:00:06.5]} 24. Bxb6 {[%clk 0:01:39]} 24...
Nxh2 {[%clk 0:00:02.2]} 25. c5 {[%clk 0:01:37.4]} 1-0

[Event "*** Titled Tuesday Blitz"]
[Site "Chess.com"]
[Date "2020.05.26"]
[Round "9"]
[White "2346PL"]
[Black "dopolian"]
[Result "1-0"]
[WhiteElo "2516"]
[BlackElo "2347"]
[TimeControl "180+1"]
[EndTime "11:50:17 PDT"]
[Termination "2346PL won on time"]

1. d4 {[%clk 0:03:00.9]} 1... Nf6 {[%clk 0:02:59]} 2. Bg5 {[%clk 0:03:01]} 2...
d5 {[%clk 0:02:56.3]} 3. e3 {[%clk 0:03:00.8]} 3... e6 {[%clk 0:02:51.9]} 4. Bd3
{[%clk 0:02:59.6]} 4... Be7 {[%clk 0:02:52.2]} 5. Nd2 {[%clk 0:02:59.7]} 5...
O-O {[%clk 0:02:49.3]} 6. Ngf3 {[%clk 0:02:59.9]} 6... Nbd7 {[%clk 0:02:44.5]}
7. O-O {[%clk 0:02:59.5]} 7... c5 {[%clk 0:02:44.8]} 8. c3 {[%clk 0:02:59.8]}
8... Qc7 {[%clk 0:02:42.8]} 9. Qe2 {[%clk 0:02:57.7]} 9... Bd6 {[%clk
0:02:38.9]} 10. e4 {[%clk 0:02:56.2]} 10... dxe4 {[%clk 0:02:39.1]} 11. Nxe4
{[%clk 0:02:56]} 11... Nxe4 {[%clk 0:02:35.2]} 12. Qxe4 {[%clk 0:02:56.9]} 12...
g6 {[%clk 0:02:32.5]} 13. Qh4 {[%clk 0:02:54.7]} 13... cxd4 {[%clk 0:02:25.9]}
14. cxd4 {[%clk 0:02:54.5]} 14... Qa5 {[%clk 0:02:10.5]} 15. Rae1 {[%clk
0:02:32.1]} 15... Re8 {[%clk 0:01:51.3]} 16. Ne5 {[%clk 0:02:25]} 16... Bf8
{[%clk 0:01:40.1]} 17. Re3 {[%clk 0:02:13.8]} 17... Bg7 {[%clk 0:01:36.1]} 18.
Rh3 {[%clk 0:02:10.8]} 18... Nxe5 {[%clk 0:01:17]} 19. Qxh7+ {[%clk 0:02:09.6]}
19... Kf8 {[%clk 0:01:17]} 20. Bh6 {[%clk 0:01:57.6]} 20... Bxh6 {[%clk
0:01:00.3]} 21. Qxh6+ {[%clk 0:01:58.5]} 21... Ke7 {[%clk 0:00:53.2]} 22. Qh4+
{[%clk 0:01:57.2]} 22... Kd7 {[%clk 0:00:25.4]} 23. dxe5 {[%clk 0:01:56.8]}
23... Qxe5 {[%clk 0:00:25.2]} 24. Rc1 {[%clk 0:01:46.2]} 24... a6 {[%clk
0:00:12.6]} 25. Qb4 {[%clk 0:01:38]} 25... b5 {[%clk 0:00:07.2]} 26. Be4 {[%clk
0:01:37.1]} 26... Rb8 {[%clk 0:00:01.3]} 27. Rd3+ {[%clk 0:01:36.8]} 1-0

[Event "*** Titled Tuesday Blitz"]
[Site "Chess.com"]
[Date "2020.05.26"]
[Round "9"]
[White "CarlssonLudvig"]
[Black "MMKZH22"]
[Result "1/2-1/2"]
[WhiteElo "2500"]
[BlackElo "2296"]
[TimeControl "180+1"]
[EndTime "11:50:20 PDT"]
[Termination "Game drawn by repetition"]

1. d4 {[%clk 0:03:00.9]} 1... d5 {[%clk 0:02:59.8]} 2. c4 {[%clk 0:03:00.5]}
2... c6 {[%clk 0:03:00.1]} 3. Nf3 {[%clk 0:02:59.6]} 3... Nf6 {[%clk 0:03:00.5]}
4. Nbd2 {[%clk 0:02:58.8]} 4... g6 {[%clk 0:02:58.4]} 5. e3 {[%clk 0:02:46.1]}
5... Bg7 {[%clk 0:02:58.2]} 6. b4 {[%clk 0:02:46.5]} 6... O-O {[%clk 0:02:54.6]}
7. Bb2 {[%clk 0:02:30.2]} 7... a6 {[%clk 0:02:31.3]} 8. a4 {[%clk 0:02:22]} 8...
Bg4 {[%clk 0:02:29.8]} 9. h3 {[%clk 0:02:16.5]} 9... Bxf3 {[%clk 0:02:29.5]} 10.
Nxf3 {[%clk 0:02:12.5]} 10... Nbd7 {[%clk 0:02:29.1]} 11. Be2 {[%clk 0:01:55.4]}
11... e6 {[%clk 0:02:22.9]} 12. O-O {[%clk 0:01:54.8]} 12... Ne4 {[%clk
0:02:10.4]} 13. Qb3 {[%clk 0:01:44.5]} 13... f5 {[%clk 0:01:59.5]} 14. b5 {[%clk
0:01:42.7]} 14... f4 {[%clk 0:01:47.4]} 15. Ba3 {[%clk 0:01:21.7]} 15... Rf5
{[%clk 0:01:37.2]} 16. Bd3 {[%clk 0:01:17.8]} 16... fxe3 {[%clk 0:01:35.3]} 17.
fxe3 {[%clk 0:01:16.9]} 17... Bh6 {[%clk 0:01:31.1]} 18. cxd5 {[%clk 0:01:02.5]}
18... Bxe3+ {[%clk 0:01:24.4]} 19. Kh2 {[%clk 0:01:02.7]} 19... Bf4+ {[%clk
0:01:21.1]} 20. Kg1 {[%clk 0:00:59.1]} 20... Be3+ {[%clk 0:01:21]} 21. Kh2
{[%clk 0:00:57]} 21... Bf4+ {[%clk 0:01:15.6]} 22. Kg1 {[%clk 0:00:12]} 22...
Be3+ {[%clk 0:01:15.1]} 1/2-1/2

[Event "*** Titled Tuesday Blitz"]
[Site "Chess.com"]
[Date "2020.05.26"]
[Round "9"]
[White "OK97"]
[Black "aNaartjieZA"]
[Result "1-0"]
[WhiteElo "2772"]
[BlackElo "2579"]
[TimeControl "180+1"]
[EndTime "11:50:27 PDT"]
[Termination "OK97 won by resignation"]

1. e4 {[%clk 0:03:00.9]} 1... e6 {[%clk 0:02:59.7]} 2. d4 {[%clk 0:03:00.4]}
2... d5 {[%clk 0:03:00]} 3. Nc3 {[%clk 0:03:01]} 3... Bb4 {[%clk 0:02:59.5]} 4.
e5 {[%clk 0:02:59.3]} 4... c5 {[%clk 0:02:59.3]} 5. a3 {[%clk 0:02:59.6]} 5...
Bxc3+ {[%clk 0:02:59.5]} 6. bxc3 {[%clk 0:03:00.5]} 6... Ne7 {[%clk 0:02:59.9]}
7. h4 {[%clk 0:02:56.7]} 7... Qc7 {[%clk 0:02:55.2]} 8. h5 {[%clk 0:02:56.7]}
8... cxd4 {[%clk 0:02:49.7]} 9. cxd4 {[%clk 0:02:57.6]} 9... Qc3+ {[%clk
0:02:47.8]} 10. Bd2 {[%clk 0:02:58.1]} 10... Qxd4 {[%clk 0:02:47.5]} 11. Nf3
{[%clk 0:02:57.2]} 11... Qb6 {[%clk 0:02:47.4]} 12. Bd3 {[%clk 0:02:36.1]} 12...
h6 {[%clk 0:02:44.6]} 13. Rh4 {[%clk 0:02:33.8]} 13... Nbc6 {[%clk 0:02:42.3]}
14. Rg4 {[%clk 0:02:31]} 14... Kf8 {[%clk 0:02:40.9]} 15. Rb1 {[%clk 0:02:17.1]}
15... Qc7 {[%clk 0:02:40.5]} 16. Qe2 {[%clk 0:02:06]} 16... Bd7 {[%clk
0:02:35.4]} 17. Rf4 {[%clk 0:01:54.8]} 17... Ke8 {[%clk 0:02:27.8]} 18. g4
{[%clk 0:01:41.1]} 18... d4 {[%clk 0:02:21.9]} 19. Nxd4 {[%clk 0:01:15.6]} 19...
Nxe5 {[%clk 0:02:18.4]} 20. Bb5 {[%clk 0:01:01.5]} 20... N5c6 {[%clk 0:02:07.6]}
21. Bxc6 {[%clk 0:00:40.1]} 21... Bxc6 {[%clk 0:02:00.5]} 22. Nb5 {[%clk
0:00:38.9]} 22... Bxb5 {[%clk 0:01:35.1]} 23. Qxb5+ {[%clk 0:00:39.8]} 23... Nc6
{[%clk 0:01:33.4]} 24. Qxb7 {[%clk 0:00:34.8]} 24... Qxb7 {[%clk 0:01:25.9]} 25.
Rxb7 {[%clk 0:00:35.7]} 25... Nd8 {[%clk 0:01:25.8]} 26. Rc7 {[%clk 0:00:30.4]}
26... a6 {[%clk 0:01:18]} 27. Bb4 {[%clk 0:00:28.2]} 1-0

[Event "*** Titled Tuesday Blitz"]
[Site "Chess.com"]
[Date "2020.05.26"]
[Round "9"]
[White "dianosky"]
[Black "krasavetc"]
[Result "1-0"]
[WhiteElo "2386"]
[BlackElo "2249"]
[TimeControl "180+1"]
[EndTime "11:50:31 PDT"]
[Termination "dianosky won by resignation"]

1. d4 {[%clk 0:03:00.3]} 1... Nf6 {[%clk 0:02:59.5]} 2. c4 {[%clk 0:02:59.9]}
2... g6 {[%clk 0:02:59.7]} 3. Nc3 {[%clk 0:03:00.1]} 3... Bg7 {[%clk 0:03:00]}
4. e4 {[%clk 0:03:00.4]} 4... d6 {[%clk 0:03:00.2]} 5. f4 {[%clk 0:03:00.5]}
5... O-O {[%clk 0:03:00.6]} 6. Be2 {[%clk 0:03:01.3]} 6... Nbd7 {[%clk
0:03:00.2]} 7. e5 {[%clk 0:02:59.6]} 7... dxe5 {[%clk 0:02:59.4]} 8. dxe5 {[%clk
0:03:00]} 8... Ne8 {[%clk 0:02:59.5]} 9. Be3 {[%clk 0:02:58.9]} 9... c6 {[%clk
0:02:58.9]} 10. Nf3 {[%clk 0:02:43.7]} 10... Nc7 {[%clk 0:02:57.5]} 11. O-O
{[%clk 0:02:43.5]} 11... Ne6 {[%clk 0:02:57.8]} 12. b4 {[%clk 0:02:39.5]} 12...
b6 {[%clk 0:02:56]} 13. Qb3 {[%clk 0:02:33.9]} 13... Bb7 {[%clk 0:02:53.4]} 14.
Rfd1 {[%clk 0:02:32.7]} 14... Qc7 {[%clk 0:02:53.3]} 15. Rac1 {[%clk 0:02:24.4]}
15... Rfd8 {[%clk 0:02:51.1]} 16. Nd5 {[%clk 0:02:19]} 16... cxd5 {[%clk
0:02:34.7]} 17. cxd5 {[%clk 0:02:19.1]} 17... Nec5 {[%clk 0:02:20.4]} 18. bxc5
{[%clk 0:02:19.1]} 18... Nxc5 {[%clk 0:02:20.2]} 19. Bxc5 {[%clk 0:02:12.6]}
19... bxc5 {[%clk 0:02:19.3]} 20. Bc4 {[%clk 0:02:12.7]} 20... Rab8 {[%clk
0:02:14.8]} 21. Qa3 {[%clk 0:02:01.4]} 21... Rbc8 {[%clk 0:02:02.1]} 22. Ng5
{[%clk 0:01:55.7]} 22... Qd7 {[%clk 0:01:32.7]} 23. Nxf7 {[%clk 0:01:50.8]}
23... Rf8 {[%clk 0:01:27.4]} 24. d6 {[%clk 0:01:39.6]} 24... e6 {[%clk
0:01:14.9]} 25. Ng5 {[%clk 0:01:37.8]} 25... Bd5 {[%clk 0:01:12.5]} 26. Rxd5
{[%clk 0:01:27.2]} 26... exd5 {[%clk 0:01:13.4]} 27. Bxd5+ {[%clk 0:01:27.4]}
27... Kh8 {[%clk 0:01:10.5]} 28. Be6 {[%clk 0:01:20.1]} 28... Qc6 {[%clk
0:01:09.6]} 29. Bxc8 {[%clk 0:01:06]} 29... Rxc8 {[%clk 0:01:05.7]} 30. Ne6
{[%clk 0:00:59.4]} 30... Bh6 {[%clk 0:00:55.8]} 31. Qxc5 {[%clk 0:00:49.6]} 1-0

[Event "*** Titled Tuesday Blitz"]
[Site "Chess.com"]
[Date "2020.05.26"]
[Round "9"]
[White "MilosJi"]
[Black "Arjun2002"]
[Result "0-1"]
[WhiteElo "2530"]
[BlackElo "2669"]
[TimeControl "180+1"]
[EndTime "11:50:34 PDT"]
[Termination "Arjun2002 won on time"]

1. Nf3 {[%clk 0:02:32.1]} 1... d5 {[%clk 0:02:54.1]} 2. c4 {[%clk 0:02:31.8]}
2... c6 {[%clk 0:02:52.8]} 3. Qb3 {[%clk 0:02:31.6]} 3... Nf6 {[%clk 0:02:51.2]}
4. d4 {[%clk 0:02:31.1]} 4... e6 {[%clk 0:02:48.4]} 5. g3 {[%clk 0:02:30.6]}
5... dxc4 {[%clk 0:02:41.4]} 6. Qxc4 {[%clk 0:02:30.1]} 6... b5 {[%clk 0:02:42]}
7. Qc2 {[%clk 0:02:29.9]} 7... Bb7 {[%clk 0:02:42.6]} 8. Bg2 {[%clk 0:02:29.9]}
8... a6 {[%clk 0:02:42.9]} 9. O-O {[%clk 0:02:26.9]} 9... Nbd7 {[%clk
0:02:20.2]} 10. a4 {[%clk 0:02:26.2]} 10... c5 {[%clk 0:02:18]} 11. Rd1 {[%clk
0:02:23.5]} 11... Qb6 {[%clk 0:02:10.1]} 12. axb5 {[%clk 0:02:22.7]} 12... axb5
{[%clk 0:02:10]} 13. Rxa8+ {[%clk 0:02:01.9]} 13... Bxa8 {[%clk 0:02:10.9]} 14.
Na3 {[%clk 0:01:48]} 14... Be7 {[%clk 0:02:05]} 15. Qb3 {[%clk 0:01:43.6]} 15...
Bc6 {[%clk 0:01:58.3]} 16. Ne5 {[%clk 0:01:43.1]} 16... Nxe5 {[%clk 0:01:52.4]}
17. dxe5 {[%clk 0:01:19.1]} 17... Nd5 {[%clk 0:01:52.4]} 18. e4 {[%clk
0:01:11.6]} 18... c4 {[%clk 0:01:45.8]} 19. Qf3 {[%clk 0:01:06.5]} 19... Nb4
{[%clk 0:01:44.7]} 20. Qg4 {[%clk 0:01:05.1]} 20... g6 {[%clk 0:01:24.8]} 21.
Bh6 {[%clk 0:01:01.4]} 21... Nd3 {[%clk 0:01:23.7]} 22. Qe2 {[%clk 0:00:58.3]}
22... Bc5 {[%clk 0:01:18.2]} 0-1

[Event "*** Titled Tuesday Blitz"]
[Site "Chess.com"]
[Date "2020.05.26"]
[Round "9"]
[White "Gyapiking"]
[Black "Norival"]
[Result "1-0"]
[WhiteElo "2542"]
[BlackElo "2637"]
[TimeControl "180+1"]
[EndTime "11:50:37 PDT"]
[Termination "Gyapiking won by resignation"]

1. c4 {[%clk 0:02:25.5]} 1... e5 {[%clk 0:02:57.6]} 2. g3 {[%clk 0:02:24.8]}
2... Nf6 {[%clk 0:02:57.3]} 3. Bg2 {[%clk 0:02:24.7]} 3... d5 {[%clk 0:02:57.5]}
4. cxd5 {[%clk 0:02:24.8]} 4... Nxd5 {[%clk 0:02:58.3]} 5. Nc3 {[%clk
0:02:24.8]} 5... Nb6 {[%clk 0:02:58.1]} 6. e3 {[%clk 0:02:25.1]} 6... Be7 {[%clk
0:02:57.4]} 7. Nge2 {[%clk 0:02:25]} 7... O-O {[%clk 0:02:57.4]} 8. O-O {[%clk
0:02:25.2]} 8... c6 {[%clk 0:02:57]} 9. f4 {[%clk 0:02:25.1]} 9... N8d7 {[%clk
0:02:56.3]} 10. d4 {[%clk 0:02:23]} 10... exd4 {[%clk 0:02:54.6]} 11. exd4
{[%clk 0:02:22.5]} 11... Nf6 {[%clk 0:02:54.3]} 12. f5 {[%clk 0:02:22.1]} 12...
Nbd5 {[%clk 0:02:47.4]} 13. Kh1 {[%clk 0:02:21.8]} 13... b6 {[%clk 0:02:46.5]}
14. Nxd5 {[%clk 0:02:18.5]} 14... Nxd5 {[%clk 0:02:46.1]} 15. Nc3 {[%clk
0:02:15.6]} 15... Ba6 {[%clk 0:02:31.7]} 16. Rf2 {[%clk 0:02:10.4]} 16... Rc8
{[%clk 0:02:25.9]} 17. Nxd5 {[%clk 0:02:08.1]} 17... cxd5 {[%clk 0:02:26.8]} 18.
Bf4 {[%clk 0:02:08]} 18... Qd7 {[%clk 0:02:21.5]} 19. Qh5 {[%clk 0:02:00.5]}
19... Bd3 {[%clk 0:02:08.4]} 20. Re1 {[%clk 0:01:42.7]} 20... Bb4 {[%clk
0:01:59.2]} 21. Re5 {[%clk 0:01:28.2]} 21... Be4 {[%clk 0:01:46.9]} 22. f6
{[%clk 0:01:23.9]} 22... Bg6 {[%clk 0:01:40.4]} 23. Qh4 {[%clk 0:01:20.5]} 23...
gxf6 {[%clk 0:01:33.8]} 24. Qxf6 {[%clk 0:01:19.2]} 24... Rc6 {[%clk 0:01:30.5]}
25. Qh4 {[%clk 0:01:18.5]} 25... Rd6 {[%clk 0:01:12]} 26. Bg5 {[%clk 0:01:13.7]}
26... Re8 {[%clk 0:01:03.3]} 27. Bf6 {[%clk 0:01:12.4]} 27... Ree6 {[%clk
0:00:57.6]} 28. g4 {[%clk 0:00:55.4]} 28... Qc6 {[%clk 0:00:48.8]} 29. g5 {[%clk
0:00:53]} 29... Rxe5 {[%clk 0:00:45.3]} 30. dxe5 {[%clk 0:00:51.6]} 30... Re6
{[%clk 0:00:44.3]} 31. Qxb4 {[%clk 0:00:50]} 1-0

[Event "*** Titled Tuesday Blitz"]
[Site "Chess.com"]
[Date "2020.05.26"]
[Round "9"]
[White "andy_rekt"]
[Black "rakshi2005"]
[Result "0-1"]
[WhiteElo "2165"]
[BlackElo "2329"]
[TimeControl "180+1"]
[EndTime "11:50:37 PDT"]
[Termination "rakshi2005 won by resignation"]

1. d4 {[%clk 0:03:00.9]} 1... Nf6 {[%clk 0:02:59.4]} 2. c4 {[%clk 0:03:00.9]}
2... g6 {[%clk 0:02:59.3]} 3. Nc3 {[%clk 0:03:01.2]} 3... Bg7 {[%clk 0:02:59.8]}
4. e4 {[%clk 0:03:01.7]} 4... d6 {[%clk 0:02:59.7]} 5. Nge2 {[%clk 0:03:02.2]}
5... O-O {[%clk 0:03:00.3]} 6. Ng3 {[%clk 0:03:02.1]} 6... e5 {[%clk 0:03:00.6]}
7. d5 {[%clk 0:03:02]} 7... Nfd7 {[%clk 0:02:59.2]} 8. Be2 {[%clk 0:03:01.9]}
8... f5 {[%clk 0:02:55.1]} 9. exf5 {[%clk 0:03:01.4]} 9... gxf5 {[%clk
0:02:52.8]} 10. f4 {[%clk 0:03:02]} 10... e4 {[%clk 0:02:49.5]} 11. O-O {[%clk
0:02:51]} 11... Qf6 {[%clk 0:02:25.3]} 12. Be3 {[%clk 0:02:47.2]} 12... Na6
{[%clk 0:02:05.8]} 13. Nh5 {[%clk 0:02:38.4]} 13... Qg6 {[%clk 0:02:00.5]} 14.
Nxg7 {[%clk 0:02:35.2]} 14... Qxg7 {[%clk 0:02:01.4]} 15. Bd4 {[%clk 0:02:34.3]}
15... Nf6 {[%clk 0:01:58.7]} 16. Kh1 {[%clk 0:02:30.7]} 16... Kh8 {[%clk
0:01:58.3]} 17. Rg1 {[%clk 0:02:28.6]} 17... Bd7 {[%clk 0:01:56.5]} 18. g4
{[%clk 0:02:16.3]} 18... fxg4 {[%clk 0:01:34.3]} 19. Bxg4 {[%clk 0:02:15.3]}
19... Bxg4 {[%clk 0:01:34.1]} 20. Rxg4 {[%clk 0:02:15]} 20... Qe7 {[%clk
0:01:16.2]} 21. Qe1 {[%clk 0:02:04.3]} 21... Nc5 {[%clk 0:01:15.2]} 22. Qh4
{[%clk 0:02:03.1]} 22... Nd7 {[%clk 0:01:02.2]} 23. Rag1 {[%clk 0:01:59.3]}
23... Rg8 {[%clk 0:01:01.6]} 24. R1g2 {[%clk 0:01:25.9]} 24... e3 {[%clk
0:00:55.2]} 25. Ne4 {[%clk 0:01:16.5]} 25... Rxg4 {[%clk 0:00:40.7]} 26. Rxg4
{[%clk 0:01:09.3]} 26... Qxe4+ {[%clk 0:00:39.1]} 27. Kg1 {[%clk 0:00:56.4]}
27... Qxd4 {[%clk 0:00:38.2]} 0-1

[Event "*** Titled Tuesday Blitz"]
[Site "Chess.com"]
[Date "2020.05.26"]
[Round "9"]
[White "TokChess"]
[Black "lelajavakhishvili"]
[Result "0-1"]
[WhiteElo "2366"]
[BlackElo "2514"]
[TimeControl "180+1"]
[EndTime "11:51:01 PDT"]
[Termination "lelajavakhishvili won by resignation"]

1. Nf3 {[%clk 0:03:00.1]} 1... c5 {[%clk 0:02:58.6]} 2. g3 {[%clk 0:03:00.2]}
2... Nc6 {[%clk 0:02:57.8]} 3. Bg2 {[%clk 0:03:01.1]} 3... g6 {[%clk 0:02:57.5]}
4. O-O {[%clk 0:03:01.2]} 4... Bg7 {[%clk 0:02:57.6]} 5. c4 {[%clk 0:03:02.1]}
5... e6 {[%clk 0:02:51.9]} 6. Nc3 {[%clk 0:03:02.1]} 6... Nge7 {[%clk
0:02:51.9]} 7. d4 {[%clk 0:03:01.3]} 7... cxd4 {[%clk 0:02:49.8]} 8. Nb5 {[%clk
0:03:01.4]} 8... O-O {[%clk 0:02:48.7]} 9. Nbxd4 {[%clk 0:02:58.7]} 9... d6
{[%clk 0:02:46.4]} 10. b3 {[%clk 0:02:48.6]} 10... e5 {[%clk 0:02:34]} 11. Nxc6
{[%clk 0:02:45.9]} 11... bxc6 {[%clk 0:02:34.6]} 12. Bb2 {[%clk 0:02:44]} 12...
e4 {[%clk 0:02:30.5]} 13. Bxg7 {[%clk 0:02:24.2]} 13... exf3 {[%clk 0:02:29.8]}
14. Bxf8 {[%clk 0:02:04.2]} 14... fxg2 {[%clk 0:02:28.2]} 15. Kxg2 {[%clk
0:02:03.3]} 15... Kxf8 {[%clk 0:02:26.2]} 16. Qd4 {[%clk 0:02:03]} 16... Kg8
{[%clk 0:02:12]} 17. Rad1 {[%clk 0:02:02.3]} 17... Nf5 {[%clk 0:02:11.7]} 18.
Qf4 {[%clk 0:02:01.6]} 18... c5 {[%clk 0:02:08.2]} 19. Kg1 {[%clk 0:01:55.5]}
19... Bb7 {[%clk 0:02:06]} 20. e3 {[%clk 0:01:42.1]} 20... h5 {[%clk 0:02:01.6]}
21. Rd2 {[%clk 0:01:30.5]} 21... Qe7 {[%clk 0:02:00.6]} 22. Rfd1 {[%clk
0:01:29.6]} 22... Re8 {[%clk 0:01:57]} 23. h3 {[%clk 0:01:13.1]} 23... Ba8
{[%clk 0:01:49.6]} 24. Kh2 {[%clk 0:01:09.9]} 24... Qb7 {[%clk 0:01:46]} 25. Rd5
{[%clk 0:01:07.8]} 25... Qe7 {[%clk 0:01:38.4]} 26. Rxf5 {[%clk 0:00:54.2]}
26... gxf5 {[%clk 0:01:37.6]} 27. Qxf5 {[%clk 0:00:54.5]} 27... Qe5 {[%clk
0:01:16.8]} 28. Qxe5 {[%clk 0:00:46.7]} 28... dxe5 {[%clk 0:01:16.7]} 29. Rd7
{[%clk 0:00:39.3]} 29... Bf3 {[%clk 0:01:15.8]} 30. g4 {[%clk 0:00:25.1]} 30...
h4 {[%clk 0:01:14.9]} 31. Kg1 {[%clk 0:00:24.4]} 31... a5 {[%clk 0:01:12.4]} 32.
Rd6 {[%clk 0:00:22.3]} 32... Kg7 {[%clk 0:01:06.1]} 33. g5 {[%clk 0:00:20.7]}
33... a4 {[%clk 0:01:04.5]} 34. Rf6 {[%clk 0:00:20.3]} 34... axb3 {[%clk
0:01:01.1]} 35. axb3 {[%clk 0:00:20.1]} 35... e4 {[%clk 0:00:59.9]} 0-1